fUSD/lending_fUSD_20260520
["ID","MTS","AMOUNT","RATE_DAILY","PERIOD"]
[422695020,1779257433000,-500.0,0.00012619,2]
[422695030,1779257433000,-500.0,0.00012619,2]
[422695040,1779257433000,-500.0,0.00012619,2]
[422695031,1779257433000,-500.0,0.00012619,2]
[422695032,1779257433000,-163.17729695,0.00012619,2]
[422695034,1779257433000,-500.0,0.00012619,2]
[422695036,1779257433000,-500.0,0.00012619,2]
[422695038,1779257433000,-500.0,0.00012619,2]
[422695048,1779257433000,-500.0,0.00012619,2]
[422695042,1779257433000,-500.0,0.00012619,2]
[422695039,1779257433000,-500.0,0.00012619,2]
[422695043,1779257433000,-500.0,0.00012619,2]
[422695019,1779257433000,-500.0,0.00012619,2]
[422695035,1779257433000,-150.0,0.00012619,2]
[422695018,1779257433000,-500.0,0.00012619,2]
[422695003,1779257433000,-162.05,0.00012329,2]
[422695017,1779257433000,-500.0,0.00012619,2]
[422695002,1779257433000,-152.0,0.00012231,3]
[422694998,1779257433000,-2463.49,0.00012112,2]
[422694996,1779257433000,-2000.0,0.00011892,2]
[422694995,1779257433000,-2463.49,0.0001183,2]
[422694997,1779257433000,-89150.96425792,0.000119,2]
[422694999,1779257433000,-166.78,0.00012118,2]
[422695001,1779257433000,-2206.88,0.00012222,2]
[422695000,1779257433000,-200.0,0.00012207,2]
[422695006,1779257433000,-2850.62636716,0.00012444,2]
[422695045,1779257433000,-368.97800588,0.00012619,2]
[422695016,1779257433000,-500.0,0.00012619,2]
[422695005,1779257433000,-2463.49,0.00012394,2]
[422695004,1779257433000,-608.71440609,0.00012383,2]
[422695010,1779257433000,-500.0,0.00012619,2]
[422695008,1779257433000,-297.29,0.00012505,2]
[422695007,1779257433000,-150.0,0.00012477,2]
[422695009,1779257433000,-500.0,0.00012619,2]
[422695013,1779257433000,-500.0,0.00012619,2]
[422695012,1779257433000,-500.0,0.00012619,2]
[422695015,1779257433000,-500.0,0.00012619,2]
[422695025,1779257433000,-500.0,0.00012619,2]
[422695014,1779257433000,-500.0,0.00012619,2]
[422695011,1779257433000,-500.0,0.00012619,2]
[422695037,1779257433000,-500.0,0.00012619,2]
[422695041,1779257433000,-500.0,0.00012619,2]
[422695047,1779257433000,-500.0,0.00012619,2]
[422695075,1779257433000,-200.0,0.00013699,2]
[422695077,1779257433000,-166.66,0.00013699,2]
[422695076,1779257433000,-2500.0,0.00013699,2]
[422695074,1779257433000,-500.0,0.00013698,2]
[422695078,1779257433000,-9999.99,0.00013699,2]
[422695079,1779257433000,-720.6277,0.00013709,2]
[422695081,1779257433000,-500.0,0.00013762,2]
[422695082,1779257433000,-150.0,0.00013809,2]
[422695084,1779257433000,-1354.0,0.00013809,2]
[422695080,1779257433000,-369.04246239,0.00013759,2]
[422695083,1779257433000,-625.0,0.00013809,2]
[422695085,1779257433000,-3545.0,0.00013809,2]
[422695088,1779257433000,-174.61919141,0.00013815,2]
[422695087,1779257433000,-1224.0,0.00013809,2]
[422695086,1779257433000,-1271.0,0.00013809,2]
[422695089,1779257433000,-500.0,0.00013815,2]
[422695044,1779257433000,-500.0,0.00012619,2]
[422695092,1779257433000,-301.58131105,0.00013815,2]
[422695094,1779257433000,-1235.18214925,0.00013815,2]
[422695093,1779257433000,-200.0,0.00013815,2]
[422695091,1779257433000,-500.0,0.00013815,2]
[422695095,1779257433000,-181.08010149,0.00013815,2]
[422695096,1779257433000,-578.20924308,0.00013815,2]
[422695073,1779257433000,-500.0,0.00013698,2]
[422695069,1779257433000,-334.9895,0.00013671,2]
[422695090,1779257433000,-623.58710448,0.00013815,2]
[422695067,1779257433000,-1000.0,0.00013453,2]
[422695066,1779257433000,-500.0,0.00013453,2]
[422695046,1779257433000,-500.0,0.00012619,2]
[422695050,1779257433000,-150.0,0.00012619,2]
[422695049,1779257433000,-500.0,0.00012619,2]
[422695051,1779257433000,-500.0,0.00012619,2]
[422695053,1779257433000,-165.54968382,0.00012619,2]
[422695052,1779257433000,-500.0,0.00012619,2]
[422695056,1779257433000,-736.0,0.00012661,2]
[422695058,1779257433000,-2000.0,0.00013081,2]
[422695054,1779257433000,-500.0,0.00012619,2]
[422695059,1779257433000,-166.66,0.00013118,2]
[422695060,1779257433000,-6058.0,0.00013181,2]
[422695057,1779257433000,-2850.62636716,0.00013058,2]
[422695055,1779257433000,-374.0,0.00012619,2]
[422695070,1779257433000,-2850.62636716,0.00013672,2]
[422695065,1779257433000,-1000.0,0.000133,2]
[422695064,1779257433000,-308.0,0.000133,2]
[422695068,1779257433000,-166.66,0.00013551,2]
[422695061,1779257433000,-3633.0,0.00013181,2]
[422695072,1779257433000,-500.0,0.00013698,2]
[422695062,1779257433000,-2399.1241249,0.00013266,2]
[422695063,1779257433000,-315.0,0.000133,2]
[422695071,1779257433000,-152.0,0.00013672,4]
[422695116,1779257434000,-151.0,0.00013815,2]
[422695120,1779257434000,-151.0,0.00013815,2]
[422695127,1779257434000,-151.0,0.00013815,2]
[422695119,1779257434000,-151.0,0.00013815,2]
[422695121,1779257434000,-151.0,0.00013815,2]
[422695125,1779257434000,-151.0,0.00013815,2]
[422695126,1779257434000,-151.0,0.00013815,2]
[422695123,1779257434000,-151.0,0.00013815,2]
[422695129,1779257434000,-151.0,0.00013815,2]
[422695124,1779257434000,-151.0,0.00013815,2]
[422695128,1779257434000,-151.0,0.00013815,2]
[422695131,1779257434000,-151.0,0.00013815,2]
[422695130,1779257434000,-151.0,0.00013815,2]
[422695132,1779257434000,-151.0,0.00013815,2]
[422695137,1779257434000,-152.0,0.00013815,2]
[422695112,1779257434000,-151.0,0.00013815,2]
[422695122,1779257434000,-151.0,0.00013815,2]
[422695109,1779257434000,-151.0,0.00013815,2]
[422695101,1779257434000,-151.0,0.00013815,2]
[422695110,1779257434000,-151.0,0.00013815,2]
[422695134,1779257434000,-152.0,0.00013815,2]
[422695097,1779257434000,-1798.80895522,0.00013815,2]
[422695102,1779257434000,-151.0,0.00013815,2]
[422695103,1779257434000,-151.0,0.00013815,2]
[422695104,1779257434000,-151.0,0.00013815,2]
[422695099,1779257434000,-151.0,0.00013815,2]
[422695100,1779257434000,-151.0,0.00013815,2]
[422695098,1779257434000,-151.0,0.00013815,2]
[422695105,1779257434000,-151.0,0.00013815,2]
[422695106,1779257434000,-151.0,0.00013815,2]
[422695107,1779257434000,-151.0,0.00013815,2]
[422695117,1779257434000,-151.0,0.00013815,2]
[422695118,1779257434000,-151.0,0.00013815,2]
[422695114,1779257434000,-151.0,0.00013815,2]
[422695115,1779257434000,-151.0,0.00013815,2]
[422695111,1779257434000,-151.0,0.00013815,2]
[422695113,1779257434000,-151.0,0.00013815,2]
[422695108,1779257434000,-151.0,0.00013815,2]
[422695135,1779257434000,-152.0,0.00013815,2]
[422695133,1779257434000,-152.0,0.00013815,2]
[422695136,1779257434000,-152.0,0.00013815,2]
[422695155,1779257434000,-157.44632694,0.0001415,2]
[422695162,1779257434000,-500.0,0.00014249,2]
[422695156,1779257434000,-166.66,0.00014247,2]
[422695165,1779257434000,-500.0,0.00014249,2]
[422695164,1779257434000,-449.26679767,0.00014249,2]
[422695169,1779257434000,-306.09243083,0.00014249,2]
[422695172,1779257434000,-150.0,0.00014249,2]
[422695167,1779257434000,-500.0,0.00014249,2]
[422695166,1779257434000,-500.0,0.00014249,2]
[422695173,1779257434000,-690156.68812468,0.0001425,2]
[422695171,1779257434000,-300.0,0.00014249,2]
[422695168,1779257434000,-300.0,0.00014249,2]
[422695170,1779257434000,-300.0,0.00014249,2]
[422695175,1779257434000,-64696.57319132,0.0001425,2]
[422695176,1779257434000,-123308.96245583,0.0001425,2]
[422695177,1779257434000,-812.72909944,0.0001425,2]
[422695140,1779257434000,-152.0,0.00013815,2]
[422695159,1779257434000,-500.0,0.00014249,2]
[422695160,1779257434000,-173.63774544,0.00014249,2]
[422695174,1779257434000,-83330.50393458,0.0001425,2]
[422695153,1779257434000,-166.66,0.0001411,2]
[422695141,1779257434000,-204.96710786,0.00013815,2]
[422695143,1779257434000,-166.66,0.00013836,2]
[422695144,1779257434000,-547.0,0.00013926,2]
[422695145,1779257434000,-286.0,0.00013967,2]
[422695150,1779257434000,-250.0,0.00014,2]
[422695142,1779257434000,-178.61670354,0.00013815,2]
[422695146,1779257434000,-166.66,0.00013973,2]
[422695148,1779257434000,-2796.978,0.00013997,2]
[422695152,1779257434000,-297.29,0.00014068,2]
[422695138,1779257434000,-152.0,0.00013815,2]
[422695147,1779257434000,-166.66,0.00013984,2]
[422695149,1779257434000,-173.011,0.00013997,2]
[422695151,1779257434000,-2332.0,0.0001404,2]
[422695154,1779257434000,-166.78,0.00014138,2]
[422695157,1779257434000,-359.7271878,0.00014249,2]
[422695158,1779257434000,-500.0,0.00014249,2]
[422695163,1779257434000,-475.77009425,0.00014249,2]
[422695139,1779257434000,-152.0,0.00013815,2]
[422695161,1779257434000,-237.68669183,0.00014249,2]
[422695181,1779257438000,-150.0,8.588e-05,2]
[422695182,1779257438000,-657.04276175,0.0001425,2]
[422695198,1779257440000,-60369.96852238,0.0001425,2]
[422695195,1779257440000,-509.0,0.0001425,2]
[422695221,1779257443000,-362.83555431,0.00011124,2]
[422695220,1779257443000,-39420.50084933,0.0001425,2]
[422695237,1779257444000,-644.77288563,0.0001449,2]
[422695232,1779257444000,-1865.36488657,0.00014363,2]
[422695234,1779257444000,-166.66,0.00014384,2]
[422695230,1779257444000,-351.74472342,0.00014363,2]
[422695227,1779257444000,-164.0,0.0001436,2]
[422695226,1779257444000,-2850.62636716,0.00014286,2]
[422695224,1779257444000,-44930.57502302,0.0001425,3]
[422695228,1779257444000,-181.08010149,0.00014363,2]
[422695223,1779257444000,-120514.9219336,0.0001425,2]
[422695222,1779257444000,-55.16444569,0.00011124,2]
[422695229,1779257444000,-200.0,0.00014363,2]
[422695225,1779257444000,-2000.0,0.0001427,2]
[422695231,1779257444000,-187.78006525,0.00014363,2]
[422695247,1779257444000,-152.833603,0.0001459,2]
[422695240,1779257444000,-500.0,0.00014589,2]
[422695246,1779257444000,-150.0,0.0001459,5]
[422695248,1779257444000,-578087.92128656,0.0001459,2]
[422695244,1779257444000,-500.0,0.00014589,2]
[422695242,1779257444000,-500.0,0.00014589,2]
[422695243,1779257444000,-500.0,0.00014589,2]
[422695245,1779257444000,-513.50677347,0.00014589,2]
[422695239,1779257444000,-855.0311906,0.00014558,2]
[422695235,1779257444000,-166.66,0.00014417,2]
[422695238,1779257444000,-5000.0,0.0001449,2]
[422695233,1779257444000,-167.966134,0.0001437,2]
[422695241,1779257444000,-500.0,0.00014589,2]
[422695236,1779257444000,-855.03119063,0.0001449,2]
[422695249,1779257445000,-418.0,0.00014124,2]
[422695250,1779257445000,-375.36009507,0.0001459,2]
[422695263,1779257446000,-1394.29459015,0.0001459,2]
[422695262,1779257446000,-0.96490295,0.0001459,2]
[422695265,1779257447000,-35475.84785673,0.0001459,2]
[422695264,1779257447000,-862.41587966,0.0001459,2]
[422695266,1779257447000,-7366.31539666,0.0001459,2]
[422695278,1779257479000,152.0,9.727e-05,7]
[422695288,1779258150000,151.59,0.0002,120]
[422695287,1779258150000,203.46,0.0002,120]
[422695286,1779258150000,246.14,0.00021,120]
[422695285,1779258150000,319.55,0.00021,120]
[422695289,1779258423000,282.01,0.00021,120]
[422695301,1779258631000,-150.0,7.216e-05,2]
[422695300,1779258631000,-172.34,7.145e-05,2]
[422695298,1779258631000,-77.69964302,6.593e-05,2]
[422695299,1779258631000,-250.0,6.593e-05,2]
[422695296,1779258631000,-143.81413381,6.57e-05,2]
[422695303,1779258631000,-150.0,8.091e-05,2]
[422695294,1779258631000,-172.34,5.994e-05,2]
[422695295,1779258631000,-106.18586619,6.57e-05,2]
[422695297,1779258631000,-172.30035698,6.593e-05,2]
[422695304,1779258631000,-25.39035698,8.091e-05,2]
[422695311,1779258631000,-612.4234962,9.388e-05,2]
[422695306,1779258631000,-172.34,8.297e-05,2]
[422695305,1779258631000,-124.60964302,8.091e-05,2]
[422695307,1779258631000,-150.0,9.29e-05,2]
[422695308,1779258631000,-20.34720961,9.29e-05,2]
[422695310,1779258631000,-150.0,9.387e-05,2]
[422695309,1779258631000,-129.65279039,9.29e-05,2]
[422695312,1779258631000,-7574.7591809,9.388e-05,2]
[422695314,1779258631000,-1121.64785659,9.388e-05,2]
[422695313,1779258631000,-1825.33350675,9.388e-05,2]
[422695302,1779258631000,-250.0,7.92e-05,2]
[422695320,1779258637000,-9478.24945576,9.388e-05,2]
[422695322,1779258637000,-172.34,9.449e-05,2]
[422695321,1779258637000,-9999.99,9.388e-05,2]
[422695324,1779258637000,-212.0,0.0001,2]
[422695323,1779258637000,-399.7223461,0.0001,2]
[422695325,1779258637000,-212.0,0.0001,2]
[422695327,1779258637000,-500.0,0.0001,2]
[422695329,1779258637000,-215.20247212,0.00010085,2]
[422695328,1779258637000,-399.7223461,0.00010046,2]
[422695332,1779258637000,-295.03,0.00010257,2]
[422695330,1779258637000,-208.63953863,0.00010085,2]
[422695331,1779258637000,-160.0,0.00010093,2]
[422695326,1779258637000,-213.44663811,0.0001,2]
[422695372,1779258638000,-150.0,0.00012414,2]
[422695371,1779258638000,-150.0,0.00012414,2]
[422695373,1779258638000,-151.71676844,0.00012414,2]
[422695369,1779258638000,-150.0,0.00012414,2]
[422695368,1779258638000,-3482.91,0.00012407,2]
[422695367,1779258638000,-162.05,0.00012329,2]
[422695370,1779258638000,-150.0,0.00012414,2]
[422695366,1779258638000,-179.81,0.00012268,2]
[422695364,1779258638000,-3482.91,0.00012119,2]
[422695374,1779258638000,-500.0,0.00012414,2]
[422695365,1779258638000,-150.0,0.00012268,2]
[422695375,1779258638000,-500.0,0.00012414,2]
[422695386,1779258638000,-164.88,0.00012917,2]
[422695383,1779258638000,-3482.91,0.00012696,2]
[422695376,1779258638000,-500.0,0.00012414,2]
[422695377,1779258638000,-500.0,0.00012414,2]
[422695378,1779258638000,-500.0,0.00012414,2]
[422695380,1779258638000,-500.0,0.00012414,2]
[422695381,1779258638000,-500.0,0.00012414,2]
[422695382,1779258638000,-385.40743909,0.00012414,2]
[422695384,1779258638000,-2000.0,0.00012885,2]
[422695385,1779258638000,-178.37,0.00012894,2]
[422695363,1779258638000,-11346.1,0.00012087,2]
[422695389,1779258638000,-500.0,0.00013247,2]
[422695387,1779258638000,-500.0,0.00013247,2]
[422695391,1779258638000,-500.0,0.00013247,2]
[422695379,1779258638000,-480.63282319,0.00012414,2]
[422695362,1779258638000,-500.0,0.00012016,2]
[422695350,1779258638000,-2000.0,0.00011453,2]
[422695360,1779258638000,-3482.91,0.0001183,2]
[422695333,1779258638000,-500.0,0.00010274,2]
[422695336,1779258638000,-500.0,0.00010548,2]
[422695334,1779258638000,-255.0,0.00010326,2]
[422695337,1779258638000,-177.02,0.00010574,2]
[422695335,1779258638000,-150.99,0.00010392,2]
[422695338,1779258638000,-172.34,0.00010601,2]
[422695340,1779258638000,-500.39999897,0.00010822,2]
[422695341,1779258638000,-174.46,0.00010989,2]
[422695342,1779258638000,-1271.0,0.00011158,2]
[422695344,1779258638000,-1224.0,0.00011158,2]
[422695345,1779258638000,-3633.0,0.00011158,2]
[422695339,1779258638000,-399.7223461,0.00010822,2]
[422695390,1779258638000,-500.0,0.00013247,2]
[422695343,1779258638000,-150.0,0.00011158,2]
[422695346,1779258638000,-6058.0,0.00011158,2]
[422695348,1779258638000,-1972.95,0.000114,2]
[422695347,1779258638000,-433.0,0.00011358,2]
[422695349,1779258638000,-1000.0,0.00011431,2]
[422695353,1779258638000,-150.0,0.00011515,2]
[422695355,1779258638000,-3482.91,0.00011542,2]
[422695352,1779258638000,-723.73,0.00011506,2]
[422695351,1779258638000,-178.37,0.00011462,2]
[422695356,1779258638000,-2062.93,0.00011552,2]
[422695357,1779258638000,-166.01,0.00011666,2]
[422695354,1779258638000,-169.06,0.00011521,2]
[422695358,1779258638000,-3952.89,0.00011734,2]
[422695359,1779258638000,-172.34,0.00011752,2]
[422695361,1779258638000,-200.0,0.00011911,2]
[422695395,1779258638000,-500.0,0.00013247,2]
[422695439,1779258638000,-150.0,0.00013488,2]
[422695392,1779258638000,-500.0,0.00013247,2]
[422695424,1779258638000,-150.0,0.00013375,2]
[422695427,1779258638000,-150.0,0.00013375,2]
[422695429,1779258638000,-150.0,0.00013375,2]
[422695426,1779258638000,-345.0,0.00013375,2]
[422695430,1779258638000,-150.0,0.00013375,2]
[422695428,1779258638000,-150.0,0.00013375,2]
[422695431,1779258638000,-150.0,0.00013375,2]
[422695433,1779258638000,-1587.0,0.000134,2]
[422695432,1779258638000,-244.15033115,0.00013375,2]
[422695434,1779258638000,-500.0,0.00013453,2]
[422695435,1779258638000,-1100.0,0.00013453,2]
[422695436,1779258638000,-150.0,0.00013488,2]
[422695425,1779258638000,-296.79130605,0.00013375,2]
[422695437,1779258638000,-150.0,0.00013488,2]
[422695440,1779258638000,-150.42432873,0.00013488,2]
[422695438,1779258638000,-150.0,0.00013488,2]
[422695442,1779258638000,-150.0,0.00013488,2]
[422695443,1779258638000,-150.0,0.00013488,2]
[422695445,1779258638000,-150.0,0.00013488,2]
[422695444,1779258638000,-150.0,0.00013488,2]
[422695447,1779258638000,-166.67,0.00013521,2]
[422695451,1779258638000,-150.0,0.00013576,2]
[422695446,1779258638000,-150.0,0.00013516,2]
[422695448,1779258638000,-150.0,0.00013544,2]
[422695450,1779258638000,-150.0,0.00013572,2]
[422695449,1779258638000,-150.0,0.00013553,2]
[422695441,1779258638000,-150.0,0.00013488,2]
[422695423,1779258638000,-500.0,0.00013375,2]
[422695393,1779258638000,-500.0,0.00013247,2]
[422695421,1779258638000,-500.0,0.00013375,2]
[422695422,1779258638000,-500.0,0.00013375,2]
[422695394,1779258638000,-500.0,0.00013247,2]
[422695388,1779258638000,-500.0,0.00013247,2]
[422695398,1779258638000,-500.0,0.00013247,2]
[422695396,1779258638000,-500.0,0.00013247,2]
[422695397,1779258638000,-500.0,0.00013247,2]
[422695401,1779258638000,-500.0,0.00013247,2]
[422695400,1779258638000,-500.0,0.00013247,2]
[422695403,1779258638000,-500.0,0.00013247,2]
[422695402,1779258638000,-500.0,0.00013247,2]
[422695404,1779258638000,-500.0,0.00013247,2]
[422695405,1779258638000,-360.99318876,0.00013247,2]
[422695406,1779258638000,-500.0,0.00013375,2]
[422695399,1779258638000,-500.0,0.00013247,2]
[422695408,1779258638000,-500.0,0.00013375,2]
[422695407,1779258638000,-500.0,0.00013375,2]
[422695416,1779258638000,-500.0,0.00013375,2]
[422695418,1779258638000,-500.0,0.00013375,2]
[422695419,1779258638000,-500.0,0.00013375,2]
[422695414,1779258638000,-500.0,0.00013375,2]
[422695417,1779258638000,-500.0,0.00013375,2]
[422695415,1779258638000,-500.0,0.00013375,2]
[422695412,1779258638000,-500.0,0.00013375,2]
[422695411,1779258638000,-500.0,0.00013375,2]
[422695410,1779258638000,-500.0,0.00013375,2]
[422695409,1779258638000,-500.0,0.00013375,2]
[422695413,1779258638000,-500.0,0.00013375,2]
[422695420,1779258638000,-500.0,0.00013375,2]
[422695472,1779258639000,-150.0,0.00013748,2]
[422695477,1779258639000,-2500.0,0.00013761,2]
[422695471,1779258639000,-150.0,0.00013742,2]
[422695475,1779258639000,-20646.3975,0.00013761,2]
[422695473,1779258639000,-200.0,0.00013751,2]
[422695478,1779258639000,-768.76616177,0.00013762,2]
[422695484,1779258639000,-1900.0,0.000138,5]
[422695474,1779258639000,-150.0,0.00013752,2]
[422695476,1779258639000,-5000.0,0.00013761,2]
[422695480,1779258639000,-150.0,0.0001377,2]
[422695481,1779258639000,-150.0,0.00013787,2]
[422695482,1779258639000,-4556.53389161,0.00013799,2]
[422695486,1779258639000,-150.0,0.00013827,2]
[422695470,1779258639000,-2314.0,0.0001372,2]
[422695479,1779258639000,-3970.21670409,0.00013762,2]
[422695469,1779258639000,-2314.0,0.0001372,2]
[422695454,1779258639000,-150.0,0.00013618,2]
[422695463,1779258639000,-166.66,0.00013699,2]
[422695453,1779258639000,-150.0,0.00013601,2]
[422695452,1779258639000,-600.0,0.000136,4]
[422695455,1779258639000,-150.0,0.00013629,2]
[422695491,1779258639000,-500.0,0.0001386,2]
[422695456,1779258639000,-500.0,0.00013644,2]
[422695457,1779258639000,-150.0,0.00013657,2]
[422695459,1779258639000,-150.0,0.00013664,2]
[422695458,1779258639000,-4556.53389162,0.00013661,2]
[422695466,1779258639000,-150.0,0.00013702,2]
[422695460,1779258639000,-152.0,0.00013672,3]
[422695464,1779258639000,-2500.0,0.00013699,2]
[422695462,1779258639000,-150.0,0.00013686,2]
[422695467,1779258639000,-150.0,0.00013714,2]
[422695461,1779258639000,-150.0,0.00013683,2]
[422695465,1779258639000,-1300.0,0.000137,5]
[422695468,1779258639000,-163.0,0.0001372,2]
[422695488,1779258639000,-150.0,0.0001384,2]
[422695497,1779258639000,-500.0,0.0001386,2]
[422695485,1779258639000,-150.0,0.00013813,2]
[422695509,1779258639000,-500.0,0.0001386,2]
[422695507,1779258639000,-500.0,0.0001386,2]
[422695483,1779258639000,-150.0,0.00013799,2]
[422695513,1779258639000,-500.0,0.0001386,2]
[422695515,1779258639000,-500.0,0.0001386,2]
[422695514,1779258639000,-500.0,0.0001386,2]
[422695510,1779258639000,-500.0,0.0001386,2]
[422695512,1779258639000,-500.0,0.0001386,2]
[422695517,1779258639000,-268.04202109,0.0001386,2]
[422695518,1779258639000,-500.0,0.0001386,2]
[422695521,1779258639000,-131133.61301903,0.00013861,2]
[422695522,1779258639000,-16510.95350111,0.00013861,2]
[422695520,1779258639000,-500.0,0.0001386,2]
[422695519,1779258639000,-500.0,0.0001386,2]
[422695516,1779258639000,-500.0,0.0001386,2]
[422695506,1779258639000,-500.0,0.0001386,2]
[422695511,1779258639000,-500.0,0.0001386,2]
[422695505,1779258639000,-500.0,0.0001386,2]
[422695489,1779258639000,-150.0,0.00013855,2]
[422695487,1779258639000,-166.66,0.00013836,2]
[422695490,1779258639000,-500.0,0.0001386,2]
[422695504,1779258639000,-500.0,0.0001386,2]
[422695492,1779258639000,-500.0,0.0001386,2]
[422695494,1779258639000,-500.0,0.0001386,2]
[422695495,1779258639000,-500.0,0.0001386,2]
[422695493,1779258639000,-500.0,0.0001386,2]
[422695502,1779258639000,-500.0,0.0001386,2]
[422695498,1779258639000,-500.0,0.0001386,2]
[422695499,1779258639000,-500.0,0.0001386,2]
[422695501,1779258639000,-500.0,0.0001386,2]
[422695500,1779258639000,-500.0,0.0001386,2]
[422695503,1779258639000,-500.0,0.0001386,2]
[422695496,1779258639000,-402.97206132,0.0001386,2]
[422695508,1779258639000,-500.0,0.0001386,2]
[422695547,1779258640000,-56001.67301685,0.00013861,2]
[422695532,1779258640000,-1630.23944172,0.00013861,2]
[422695594,1779258641000,-306.945,0.00013861,2]
[422695799,1779258642000,-4099.27068814,0.00010292,2]
[422695794,1779258642000,-1867.39643538,0.00010292,2]
[422695802,1779258642000,-1014.21123152,0.00010292,2]
[422695792,1779258642000,-9608.31643308,0.00010292,2]
[422695796,1779258642000,-2996.70000584,0.00010292,2]
[422695815,1779258643000,-1015.15822583,0.00010292,2]
[422695810,1779258643000,-323.28396995,0.00010292,2]
[422696135,1779258645000,-906.04106482,0.00010292,2]
[422696139,1779258646000,-649.71036066,0.00010292,2]
[422696137,1779258646000,-7267.65786983,0.00010292,2]
[422696136,1779258646000,-7232.50465464,0.00010292,2]
[422696138,1779258646000,-2022.26614224,0.00010292,2]
[422696200,1779259041000,176.82245082,0.0001,30]
[422696201,1779259557000,407.94,5.141e-05,2]
[422696202,1779259582000,-266.0,0.00021022,120]
[422696203,1779259582000,-159.0,0.00021022,120]
[422696206,1779259582000,-500.0,0.00021918,120]
[422696205,1779259582000,-161.0,0.00021035,120]
[422696204,1779259582000,-160.0,0.00021022,120]
[422696217,1779259583000,-160.0,0.00023176,120]
[422696221,1779259583000,-500.0,0.00023835,120]
[422696220,1779259583000,-500.0,0.00023725,120]
[422696215,1779259583000,-266.0,0.00023176,120]
[422696216,1779259583000,-159.0,0.00023176,120]
[422696213,1779259583000,-500.0,0.00022602,120]
[422696209,1779259583000,-160.0,0.00022073,120]
[422696212,1779259583000,-500.0,0.00022356,120]
[422696210,1779259583000,-161.0,0.00022086,120]
[422696211,1779259583000,-500.0,0.00022164,120]
[422696223,1779259583000,-266.0,0.00024335,120]
[422696208,1779259583000,-159.0,0.00022073,120]
[422696207,1779259583000,-266.0,0.00022073,120]
[422696214,1779259583000,-500.0,0.00023041,120]
[422696224,1779259583000,-159.0,0.00024335,120]
[422696219,1779259583000,-500.0,0.00023397,120]
[422696225,1779259583000,-160.0,0.00024335,120]
[422696222,1779259583000,-500.0,0.00024054,120]
[422696239,1779259583000,-247.0,0.00027397,120]
[422696240,1779259583000,-500.0,0.00027698,120]
[422696238,1779259583000,-500.0,0.00027287,120]
[422696236,1779259583000,-500.0,0.00026927,120]
[422696235,1779259583000,-500.0,0.00026575,120]
[422696237,1779259583000,-500.0,0.00027041,120]
[422696233,1779259583000,-500.0,0.00026082,120]
[422696218,1779259583000,-500.0,0.00023287,120]
[422696234,1779259583000,-500.0,0.00026356,120]
[422696229,1779259583000,-500.0,0.00025095,120]
[422696228,1779259583000,-500.0,0.00024821,120]
[422696230,1779259583000,-500.0,0.00025369,120]
[422696232,1779259583000,-500.0,0.00025753,120]
[422696231,1779259583000,-500.0,0.00025588,120]
[422696226,1779259583000,-500.0,0.0002441,120]
[422696227,1779259583000,-500.0,0.0002452,120]